fUSD/lending_fUSD_20250212
["ID","MTS","AMOUNT","RATE_DAILY","PERIOD"]
[352809763,1739337046476,-267.16036106,0.00016438,2]
[352809765,1739337046487,-620.896208,0.00016438,2]
[352809767,1739337046496,-500.0,0.00016438,2]
[352809769,1739337046506,-50.37351303,0.00016438,2]
[352809771,1739337046518,-440.82313506,0.00016438,2]
[352809776,1739337046566,-8.80335191,0.00016438,2]
[352809778,1739337046577,-508.62578411,0.00016438,2]
[352809780,1739337046588,-500.0,0.00016438,2]
[352809781,1739337046598,-157.022704,0.00016438,2]
[352809782,1739337046610,-45.86419622,0.00016438,2]
[352809783,1739337104329,7108.5628,8.836e-05,2]
[352809831,1739338232078,-150.0,8.972e-05,2]
[352809832,1739338232088,-474.0,8.973e-05,2]
[352809833,1739338232100,-315.0,8.973e-05,2]
[352809834,1739338232111,-252.5,8.973e-05,2]
[352809835,1739338232123,-21725.157,8.973e-05,2]
[352809836,1739338232133,-4135.65770262,8.973e-05,2]
[352809837,1739338232144,-503.4735659,8.973e-05,2]
[352809838,1739338232194,-360.86873148,8.973e-05,2]
[352809839,1739338232204,-1100.0,9.6e-05,3]
[352809840,1739338232214,-2200.0,9.7e-05,3]
[352809841,1739338232224,-4848.43995697,9.7e-05,2]
[352809842,1739338232235,-3400.0,9.8e-05,3]
[352809843,1739338232251,-500.0,9.869e-05,2]
[352809844,1739338232260,-500.0,9.869e-05,2]
[352809845,1739338232270,-4500.0,9.9e-05,3]
[352809846,1739338232279,-37329.30577482,0.0001,2]
[352809847,1739338232291,-88620.58464001,0.0001,2]
[352809848,1739338232311,-6702.90292869,0.0001,2]
[352809849,1739338232323,-4019.2,0.0001,2]
[352809850,1739338232335,-429.21021427,0.0001,2]
[352809851,1739338232347,-250416.64667065,0.0001,2]
[352809852,1739338232358,-394.73482766,0.0001,2]
[352809853,1739338232380,-10183.0,0.0001,2]
[352809854,1739338232392,-13174.11989418,0.0001,2]
[352809855,1739338232415,-6338.60000004,0.0001,2]
[352809856,1739338232426,-5068.89012956,0.0001,2]
[352809864,1739338237844,-4969.168468,0.0001,2]
[352809865,1739338237904,-11341.45376007,0.0001,2]
[352809866,1739338237974,-11615.01556835,0.0001,2]
[352810068,1739338240238,-69396.51312164,0.0001,2]
[352810358,1739338243023,-301.62258698,0.0001,2]
[352810361,1739338243035,-364607.23248068,0.0001,2]
[352810367,1739338243082,-4275.5011,0.0001,2]
[352810369,1739338243095,-513.56510333,0.0001,2]
[352810375,1739338243143,-1060.54499947,0.0001,2]
[352810378,1739338243154,-74164.38696688,0.0001,2]
[352810398,1739338243340,-971.4300002,0.0001,2]
[352810672,1739338246112,-394.79731862,0.0001,2]
[352810680,1739338246173,-171511.9912207,0.0001,2]
[352810682,1739338246185,-10552.89354712,0.0001,2]
[352810688,1739338246235,-979020.83680256,0.0001,2]
[352810690,1739338246247,-545.00296111,0.0001,2]
[352810697,1739338246304,-527.077714,0.0001,2]
[352810777,1739338320120,820.03551917,0.0002,120]
[352810780,1739338948434,1738.04696602,0.00020524,120]
[352810784,1739339056335,1500.0,0.00012033,10]
[352810785,1739339103111,498.0,8.215e-05,2]
[352810801,1739339304871,218.46,8.565e-05,2]
[352810821,1739339432221,-497.288997,8.928e-05,2]
[352810822,1739339432233,-252.5,8.928e-05,2]
[352810823,1739339432244,-116.041003,8.928e-05,2]
[352810824,1739339432254,-150.0,9e-05,2]
[352810825,1739339432263,-150.0,9e-05,2]
[352810826,1739339432273,-3.958997,9e-05,2]
[352810827,1739339432285,-146.041003,9e-05,2]
[352810828,1739339432294,-150.0,9e-05,2]
[352810829,1739339432304,-150.0,9.014e-05,2]
[352810830,1739339432315,-150.0,9.029e-05,2]
[352810831,1739339432326,-150.0,9.043e-05,2]
[352810832,1739339432335,-150.0,9.058e-05,2]
[352810833,1739339432344,-150.0,9.072e-05,2]
[352810834,1739339432354,-150.0,9.083e-05,2]
[352810835,1739339432363,-150.0,9.087e-05,2]
[352810836,1739339432374,-150.0,9.091e-05,2]
[352810837,1739339432384,-150.0,9.101e-05,2]
[352810838,1739339432393,-150.0,9.116e-05,2]
[352810839,1739339432403,-150.0,9.13e-05,2]
[352810840,1739339432664,-150.0,9.145e-05,2]
[352810841,1739339432674,-150.0,9.159e-05,2]
[352810842,1739339432684,-150.0,9.167e-05,2]
[352810843,1739339432694,-150.0,9.174e-05,2]
[352810844,1739339432704,-150.0,9.182e-05,2]
[352810845,1739339432713,-150.0,9.188e-05,2]
[352810846,1739339432722,-150.0,9.203e-05,2]
[352810847,1739339432731,-150.0,9.217e-05,2]
[352810848,1739339432742,-150.0,9.232e-05,2]
[352810849,1739339432753,-150.0,9.246e-05,2]
[352810850,1739339432763,-150.0,9.25e-05,2]
[352810851,1739339432772,-150.0,9.261e-05,2]
[352810852,1739339432781,-300.0,9.261e-05,2]
[352810853,1739339432790,-79.893997,9.273e-05,2]
[352810855,1739339432803,-70.106003,9.273e-05,2]
[352810856,1739339432812,-150.0,9.275e-05,2]
[352810857,1739339432821,-150.0,9.29e-05,2]
[352810858,1739339432830,-150.0,9.304e-05,2]
[352810859,1739339432839,-150.0,9.319e-05,2]
[352810860,1739339432847,-150.0,9.333e-05,2]
[352810861,1739339432857,-150.0,9.333e-05,2]
[352810862,1739339432866,-23.626982,9.348e-05,2]
[352810863,1739339432877,-126.373018,9.348e-05,2]
[352810864,1739339432886,-150.0,9.362e-05,2]
[352810866,1739339432895,-150.0,9.364e-05,2]
[352810868,1739339432904,-150.0,9.377e-05,2]
[352810870,1739339432913,-150.0,9.391e-05,2]
[352810871,1739339432923,-69.07470233,9.406e-05,2]
[352810872,1739339432934,-80.92529767,9.406e-05,2]
[352810873,1739339432944,-150.0,9.417e-05,2]
[352810874,1739339432954,-150.0,9.42e-05,2]
[352810876,1739339432963,-150.0,9.435e-05,2]
[352810878,1739339432972,-150.0,9.449e-05,2]
[352810879,1739339432982,-63.008932,9.455e-05,2]
[352810882,1739339432994,-86.991068,9.455e-05,2]
[352810884,1739339433003,-150.0,9.464e-05,2]
[352810885,1739339433014,-150.0,9.478e-05,2]
[352810886,1739339433024,-62.33578717,9.493e-05,2]
[352810887,1739339433036,-87.66421283,9.493e-05,2]
[352810888,1739339433046,-150.0,9.5e-05,2]
[352810889,1739339433056,-62.32578717,9.507e-05,2]
[352810890,1739339433068,-87.67421283,9.507e-05,2]
[352810891,1739339433078,-150.0,9.522e-05,2]
[352810892,1739339433087,-150.0,9.536e-05,2]
[352810893,1739339433097,-15.25498626,9.545e-05,2]
[352810894,1739339433115,-134.74501374,9.545e-05,2]
[352810895,1739339433125,-150.0,9.551e-05,2]
[352810896,1739339433134,-500.0,9.562e-05,2]
[352810897,1739339433144,-150.0,9.565e-05,2]
[352810898,1739339433154,-61.30232387,9.58e-05,2]
[352810899,1739339433179,-88.69767613,9.58e-05,2]
[352810900,1739339433189,-150.0,9.583e-05,2]
[352810901,1739339433200,-150.0,9.594e-05,2]
[352810902,1739339433210,-150.0,9.609e-05,2]
[352810903,1739339433220,-41.01499925,9.623e-05,2]
[352810904,1739339433232,-108.98500075,9.623e-05,2]
[352810905,1739339433243,-150.0,9.636e-05,2]
[352810906,1739339433253,-150.0,9.638e-05,2]
[352810907,1739339433262,-150.0,9.652e-05,2]
[352810908,1739339433272,-150.0,9.667e-05,2]
[352810909,1739339433282,-150.0,9.667e-05,2]
[352810910,1739339433292,-150.0,9.681e-05,2]
[352810911,1739339433301,-150.0,9.696e-05,2]
[352810912,1739339433311,-500.0,9.7e-05,3]
[352810913,1739339433320,-150.0,9.71e-05,2]
[352810914,1739339433330,-150.0,9.725e-05,2]
[352810915,1739339433339,-150.0,9.727e-05,2]
[352810916,1739339433350,-150.0,9.739e-05,2]
[352810917,1739339433360,-150.0,9.75e-05,2]
[352810918,1739339433370,-150.0,9.754e-05,2]
[352810919,1739339433383,-150.0,9.768e-05,2]
[352810920,1739339433392,-150.0,9.783e-05,2]
[352810921,1739339433402,-150.0,9.797e-05,2]
[352810922,1739339433413,-1100.0,9.8e-05,3]
[352810923,1739339433422,-150.0,9.812e-05,2]
[352810924,1739339433431,-150.0,9.818e-05,2]
[352810925,1739339433441,-150.0,9.826e-05,2]
[352810926,1739339433450,-150.0,9.833e-05,2]
[352810927,1739339433460,-150.0,9.841e-05,2]
[352810928,1739339433470,-150.0,9.855e-05,2]
[352810929,1739339433479,-150.0,9.87e-05,2]
[352810930,1739339433489,-150.0,9.884e-05,2]
[352810931,1739339433498,-150.0,9.899e-05,2]
[352810932,1739339433507,-9125.08981218,9.9e-05,2]
[352810933,1739339433516,-1700.0,9.9e-05,3]
[352810934,1739339433525,-150.0,9.909e-05,2]
[352810935,1739339433535,-150.0,9.913e-05,2]
[352810936,1739339433545,-150.0,9.917e-05,2]
[352810937,1739339433555,-150.0,9.928e-05,2]
[352810938,1739339433565,-150.0,9.942e-05,2]
[352810939,1739339433575,-150.0,9.957e-05,2]
[352810940,1739339433585,-150.0,9.971e-05,2]
[352810941,1739339433595,-150.0,9.986e-05,2]
[352810942,1739339433605,-504.6,9.999e-05,2]
[352810943,1739339433615,-181390.74054705,0.0001,2]
[352810944,1739339433649,-1570.70086741,0.0001,2]
[352810945,1739339433661,-2059.90069911,0.0001,2]
[352810946,1739339433672,-744.5572046,0.0001,2]
[352810947,1739339433707,-988.3344858,0.0001,2]
[352810948,1739339433719,-5201.88995044,0.0001,2]
[352810951,1739339438211,-10736.14185635,0.0001,2]
[352811124,1739339440426,-527.15,0.0001,2]
[352811717,1739339446245,-837.63621413,0.0001,2]
[352811719,1739339446257,-4804.9908,0.0001,2]
[352812111,1739339700397,200.0,8.557e-05,2]
[352812112,1739339917394,696.3144,8.836e-05,2]
[352812113,1739340076157,3000.0,0.0001712,90]
[352812114,1739340087419,3000.0,0.0001712,90]
[352812115,1739340094424,3000.0,0.0001712,90]
[352812116,1739340101969,2060.34,0.0001712,90]
[352812117,1739340115338,858.0,0.0001651,60]
[352812118,1739340137891,3000.0,0.000161,90]
[352812119,1739340145224,3000.0,0.000161,90]
[352812120,1739340152678,3000.0,0.000161,90]
[352812121,1739340166816,223.43,0.000161,90]
[352812126,1739340412396,-880.0,8.866e-05,2]
[352812151,1739340632375,-150.0,9e-05,2]
[352812152,1739340632384,-152.39969955,9e-05,2]
[352812153,1739340632394,-172.66327184,9e-05,2]
[352812154,1739340632403,-911.0,9e-05,2]
[352812155,1739340632413,-234.656344,9.651e-05,2]
[352812156,1739340632422,-400.0,9.7e-05,3]
[352812157,1739340632432,-300.0,9.799e-05,2]
[352812158,1739340632441,-4408.54,9.8e-05,2]
[352812159,1739340632451,-172.89,9.8e-05,2]
[352812160,1739340632460,-800.0,9.8e-05,3]
[352812161,1739340632470,-1200.0,9.9e-05,3]
[352812162,1739340632480,-500.0,9.999e-05,2]
[352812163,1739340632490,-500.0,9.999e-05,2]
[352812164,1739340632500,-1254.7797384,0.0001,2]
[352812165,1739340632512,-648.96466403,0.0001,2]
[352812166,1739340632526,-646.97763065,0.0001,2]
[352812167,1739340632539,-236913.25424429,0.0001,2]
[352812168,1739340632603,-257.196,0.0001,2]
[352812169,1739340632661,-1131.36059565,0.0001,2]
[352812170,1739340632672,-1002.50136,0.0001,2]
[352812321,1739340640337,-391.27056322,0.0001,2]
[352812328,1739340640397,-234941.805,0.0001,2]
[352812330,1739340640409,-587.2992067,0.0001,2]
[352812333,1739340640432,-263.6,0.0001,2]
[352812353,1739340640631,-2830.02928545,0.0001,2]
[352812371,1739340640801,-1139.98724241,0.0001,2]
[352812630,1739340643410,-443.4506406,0.0001,2]
[352812632,1739340643423,-79767.44015714,0.0001,2]
[352812638,1739340643475,-2247.0,0.0001,2]
[352812645,1739340643536,-26137.99999998,0.0001,2]
[352812658,1739340643648,-541.54300055,0.0001,2]
[352812661,1739340643660,-2492.06673754,0.0001,2]
[352812663,1739340643671,-119992.47272287,0.0001,2]
[352812934,1739340646361,-426.12,0.0001,2]
[352812936,1739340646373,-983372.80332703,0.0001,2]
[352812938,1739340646426,-432.00902886,0.0001,2]
[352812939,1739340646488,-715.194902,0.0001,2]
[352812945,1739340646551,-1109.97733375,0.0001,2]
[352812948,1739340646563,-4912.71591242,0.0001,2]
[352812950,1739340646576,-1627.2,0.0001,2]
[352812952,1739340646588,-278.50027762,0.0001,2]
[352812954,1739340646599,-7073.47862803,0.0001,2]
[352812958,1739340646623,-280.61074228,0.0001,2]
[352812960,1739340646635,-1536.06039528,0.0001,2]
[352812962,1739340646647,-1333.37220759,0.0001,2]
[352812965,1739340646659,-2128.76727976,0.0001,2]
[352813257,1739341040126,184.14,8.843e-05,2]
[352813258,1739341452016,-892.11,9.189e-05,2]
[352813259,1739341452043,-300.0,9.799e-05,2]
[352813260,1739341452068,-4517.072,9.8e-05,2]
[352813261,1739341452092,-205.995,9.8e-05,2]
[352813262,1739341452117,-400.0,9.9e-05,3]
[352813263,1739341452144,-500.14061955,9.973e-05,2]
[352813264,1739341452168,-500.71514969,9.973e-05,2]
[352813265,1739341452191,-156.8754058,9.973e-05,2]
[352813266,1739341452219,-18527.09182496,0.0001,2]
[352813267,1739341493828,-18500.0,0.0001,2]
[352813298,1739341769409,40000.0,0.0001203,10]
[352813306,1739341831556,-2005.7416,8.851e-05,2]
[352813307,1739341831572,-779.9595,8.973e-05,2]
[352813308,1739341831583,-700.0,9.9e-05,3]
[352813309,1739341831594,-206.5170616,9.937e-05,2]
[352813310,1739341831604,-4447.07936039,9.937e-05,2]
[352813311,1739341831614,-1332.4288836,9.937e-05,2]
[352813312,1739341831625,-501.11232123,9.973e-05,2]
[352813313,1739341831635,-194315.74049407,0.0001,2]
[352813314,1739341831645,-332.53286597,0.0001,2]
[352813315,1739341831656,-1677.41243074,0.0001,2]
[352813316,1739341831666,-286865.22518197,0.0001,2]
[352813317,1739341831828,-408.0,0.0001,2]
[352813318,1739341831841,-59287.37993874,0.0001,2]
[352813319,1739341831852,-550.62852736,0.0001,2]
[352813320,1739341831864,-1284.422624,0.0001,2]
[352813321,1739341831876,-541.470002,0.0001,2]
[352813322,1739341832002,-8522.75614062,0.0001,2]
[352813387,1739341837470,-141.48734419,0.0001,2]
[352813388,1739341837685,-117.2267,0.0001,2]
[352813390,1739341837750,-9774.06620001,0.0001,2]
[352814146,1739341845624,-388.91935723,0.0001,2]
[352814358,1739341848812,319.0,8e-05,2]
[352814568,1739341868313,2822.8743,8.836e-05,2]
[352814570,1739342310718,5301.1495,8.836e-05,2]
[352814572,1739342588662,963.29,8.248e-05,2]
[352814574,1739342749561,3197.827,8.836e-05,2]
[352814575,1739342791608,350.0,0.0002,120]
[352814576,1739342800339,-380.0,8.973e-05,2]
[352814577,1739342835008,369.0,8.8e-05,2]
[352814596,1739343031836,-273.94995387,9e-05,2]
[352814597,1739343031846,-276.611373,9.552e-05,2]
[352814598,1739343031856,-700.0,9.6e-05,3]
[352814599,1739343031866,-1400.0,9.7e-05,3]
[352814600,1739343031875,-522.06041645,9.8e-05,2]
[352814601,1739343032032,-3466.02358355,9.8e-05,2]
[352814602,1739343032042,-2100.0,9.8e-05,3]
[352814603,1739343032051,-2800.0,9.9e-05,3]
[352814604,1739343032061,-775.41,9.945e-05,2]
[352814605,1739343032071,-439.89,9.945e-05,2]
[352814606,1739343032080,-439.89,9.945e-05,2]
[352814607,1739343032089,-775.41,9.945e-05,2]
[352814608,1739343032099,-439.89,9.945e-05,2]
[352814609,1739343032109,-369.47,9.945e-05,2]
[352814610,1739343032118,-439.89,9.945e-05,2]
[352814611,1739343032127,-439.89,9.945e-05,2]
[352814612,1739343032137,-775.41,9.947e-05,2]
[352814613,1739343032146,-439.89,9.947e-05,2]
[352814615,1739343032156,-3022.7586208,9.992e-05,2]
[352814617,1739343032165,-5863.6782486,9.992e-05,2]
[352814619,1739343032176,-312.6771668,9.992e-05,2]
[352814621,1739343032185,-678.7746461,9.992e-05,2]
[352814623,1739343032195,-2994.6509219,9.993e-05,2]
[352814625,1739343032204,-5809.1537155,9.993e-05,2]
[352814627,1739343032213,-309.7696784,9.993e-05,2]
[352814629,1739343032223,-672.4629303,9.993e-05,2]
[352814631,1739343032233,-500.0,9.999e-05,2]
[352814633,1739343032242,-150.0,9.999e-05,2]
[352814635,1739343032251,-500.0,9.999e-05,2]
[352814636,1739343032261,-525.53578489,9.999e-05,2]
[352814638,1739343032270,-2572.0,0.0001,2]
[352814640,1739343032279,-180947.75183866,0.0001,2]
[352814643,1739343032291,-1976.740128,0.0001,2]
[352814645,1739343032303,-256.249993,0.0001,2]
[352814647,1739343032314,-585.07970319,0.0001,2]
[352814895,1739343040290,-2429.0,0.0001,2]
[352814897,1739343040300,-582938.0740965,0.0001,2]
[352814899,1739343040310,-1851.59109107,0.0001,2]
[352814901,1739343040320,-48723.16296115,0.0001,2]
[352814903,1739343040330,-46405.73038857,0.0001,2]
[352814905,1739343040341,-189.85016659,0.0001,2]
[352814908,1739343040351,-3115065.21225031,0.0001,2]
[352814910,1739343040362,-151.19985167,0.0001,2]
[352814912,1739343040373,-516.92134249,0.0001,2]
[352814914,1739343040383,-884.37842,0.0001,2]
[352814916,1739343040394,-3500.0,0.0001,3]
[352814918,1739343040404,-657.60323644,0.0001,2]
[352814920,1739343040414,-2315.04753035,0.0001,2]
[352814922,1739343040424,-8896.69940892,0.0001,2]
[352814924,1739343040436,-406.66077194,0.0001,2]
[352814926,1739343040446,-406.66077194,0.0001,2]
[352814928,1739343040456,-4800.45059484,0.0001,2]
[352814930,1739343040466,-888.2859224,0.0001,2]
[352814932,1739343040476,-500.0,0.00010136,2]
[352814934,1739343040486,-151.46,0.00010137,2]
[352814936,1739343040497,-290.11,0.00010137,2]
[352814939,1739343040507,-402.15781786,0.0001017,2]
[352814941,1739343040517,-500.0,0.00010188,2]
[352814942,1739343040527,-1000.0,0.00010233,2]
[352814944,1739343040537,-500.0,0.00010273,2]
[352814946,1739343040547,-13919.89504203,0.00010313,2]
[352814948,1739343040557,-500.0,0.0001041,2]
[352814950,1739343040567,-439.89,0.00010447,2]
[352814952,1739343040577,-775.41,0.00010447,2]
[352814954,1739343040592,-439.89,0.00010447,2]
[352814957,1739343040602,-775.41,0.00010447,2]
[352814959,1739343040612,-439.89,0.00010447,2]
[352814962,1739343040623,-158.18,0.00010465,2]
[352814964,1739343040633,-158.18,0.00010468,2]
[352814966,1739343040643,-158.18,0.0001047,2]
[352814967,1739343040653,-158.18,0.00010473,2]
[352814970,1739343040664,-158.18,0.00010476,2]
[352814972,1739343040674,-158.18,0.00010479,2]
[352814974,1739343040685,-158.18,0.00010481,2]
[352814976,1739343040694,-158.18,0.00010484,2]
[352814978,1739343040703,-158.18,0.00010487,2]
[352814980,1739343040713,-158.18,0.0001049,2]
[352814982,1739343040723,-158.18,0.00010492,2]
[352814984,1739343040732,-158.18,0.00010495,2]
[352814986,1739343040742,-158.18,0.00010498,2]
[352814988,1739343040751,-158.18,0.00010501,2]
[352814990,1739343040761,-158.18,0.00010504,2]
[352814992,1739343040770,-158.18,0.00010506,2]
[352814994,1739343040780,-158.18,0.00010509,2]
[352814996,1739343040790,-250.0,0.00010509,2]
[352814998,1739343040801,-158.18,0.00010512,2]
[352815000,1739343040811,-963.29,0.00010512,2]
[352815002,1739343040820,-158.18,0.00010515,2]
[352815004,1739343040830,-158.18,0.00010517,2]
[352815006,1739343040839,-500.0,0.00010547,2]
[352815008,1739343040849,-17950.72,0.00010558,2]
[352815010,1739343040859,-327.53,0.00010579,2]
[352815012,1739343040868,-439.89,0.00010647,2]
[352815014,1739343040877,-413.7,0.00010661,2]
[352815016,1739343040888,-500.0,0.00010684,2]
[352815018,1739343040898,-775.41,0.00010747,2]
[352815020,1739343040907,-439.89,0.00010747,2]
[352815022,1739343040917,-171.5,0.00010818,2]
[352815025,1739343040928,-500.0,0.00010821,2]
[352815027,1739343040938,-775.41,0.00010847,2]
[352815029,1739343040948,-439.89,0.00010847,2]
[352815031,1739343040957,-439.89,0.00010904,2]
[352815033,1739343040967,-879.5,0.00010904,2]
[352815035,1739343040977,-439.89,0.00010904,2]
[352815037,1739343040986,-439.89,0.00010904,2]
[352815039,1739343040996,-439.89,0.00010904,2]
[352815041,1739343041005,-439.89,0.00010904,2]
[352815043,1739343041015,-202.02345862,0.00010942,2]
[352815045,1739343041025,-775.41,0.00010947,2]
[352815047,1739343041035,-439.89,0.00010947,2]
[352815049,1739343041045,-775.41,0.00010947,2]
[352815051,1739343041054,-439.89,0.00010947,2]
[352815053,1739343041064,-500.0,0.00010958,2]
[352815055,1739343041074,-2000.0,0.00010959,2]
[352815057,1739343041084,-200.0,0.00010959,2]
[352815059,1739343041093,-150.76,0.00011,2]
[352815061,1739343041103,-150.76,0.00011,2]
[352815063,1739343041112,-150.76,0.00011,2]
[352815065,1739343041122,-150.76,0.00011,2]
[352815067,1739343041132,-150.76,0.00011,2]
[352815069,1739343041142,-150.76,0.00011,2]
[352815071,1739343041151,-150.76,0.00011,2]
[352815073,1739343041161,-150.76,0.00011,2]
[352815075,1739343041171,-150.76,0.00011,2]
[352815077,1739343041181,-150.76,0.00011,2]
[352815079,1739343041191,-150.76,0.00011,2]
[352815081,1739343041201,-150.76,0.00011,2]
[352815083,1739343041211,-150.76,0.00011,2]
[352815085,1739343041221,-150.76,0.00011,2]
[352815087,1739343041230,-150.76,0.00011,2]
[352815089,1739343041240,-150.76,0.00011,2]
[352815092,1739343041250,-150.76,0.00011,2]
[352815094,1739343041260,-150.76,0.00011,2]
[352815096,1739343041269,-150.76,0.00011,2]
[352815098,1739343041278,-150.76,0.00011,2]
[352815100,1739343041288,-150.76,0.00011,2]
[352815102,1739343041297,-150.76,0.00011,2]
[352815104,1739343041306,-5571.0,0.00011048,2]
[352815106,1739343041316,-500.0,0.00011095,2]
[352815108,1739343041325,-152.71656172,0.00011099,2]
[352815110,1739343041335,-884.37842,0.000111,2]
[352815112,1739343041344,-500.0,0.00011232,2]
[352815114,1739343041353,-500.0,0.00011369,2]
[352815116,1739343041363,-516.92134247,0.000114,2]
[352815118,1739343041372,-500.0,0.00011506,2]
[352815120,1739343041382,-1000.0,0.00011512,2]
[352815122,1739343041391,-228.85852407,0.00011567,2]
[352815124,1739343041402,-500.0,0.00011643,2]
[352815126,1739343041412,-657.6032364,0.00011666,2]
[352815128,1739343041421,-500.0,0.0001178,2]
[352815130,1739343041431,-775.41,0.00011863,2]
[352815132,1739343041440,-775.41,0.00011863,2]
[352815134,1739343041450,-228.85852407,0.000119,2]
[352815136,1739343041460,-327.53,0.00011901,2]
[352815138,1739343041470,-500.0,0.00011917,2]
[352815140,1739343041480,-985.93,0.00012,2]
[352815142,1739343041490,-300.0,0.00012,2]
[352815144,1739343041499,-300.0,0.00012,2]
[352815146,1739343041510,-877.54,0.00012,2]
[352815148,1739343041519,-500.0,0.00012054,2]
[352815150,1739343041529,-150.76,0.00012077,2]
[352815153,1739343041539,-35420.53,0.00012087,2]
[352815155,1739343041547,-299.99,0.00012087,2]
[352815157,1739343041557,-999.99,0.00012087,2]
[352815159,1739343041566,-9999.99,0.00012087,2]
[352815161,1739343041577,-150.99,0.00012087,2]
[352815163,1739343041590,-500.0,0.00012191,2]
[352815165,1739343041599,-151.06,0.00012228,2]
[352815167,1739343041609,-228.85852407,0.00012233,2]
[352815169,1739343041619,-500.0,0.00012328,2]
[352815171,1739343041628,-884.37843,0.0001235,2]
[352815173,1739343041638,-1250.0,0.00012387,2]
[352815175,1739343041648,-1250.0,0.00012387,2]
[352815177,1739343041657,-500.0,0.00012465,2]
[352815179,1739343041668,-1290.0,0.000125,2]
[352815181,1739343041679,-228.85852407,0.00012567,2]
[352815183,1739343041689,-500.0,0.00012602,2]
[352815185,1739343041699,-171.5,0.00012621,2]
[352815187,1739343041708,-500.0,0.00012739,2]
[352815189,1739343041717,-963.29,0.00012776,2]
[352815190,1739343041727,-150.76,0.0001279,2]
[352815191,1739343041736,-150.76,0.0001279,2]
[352815192,1739343041745,-150.76,0.0001279,2]
[352815193,1739343041755,-150.76,0.0001279,2]
[352815194,1739343041764,-150.76,0.0001279,2]
[352815195,1739343041774,-1000.0,0.00012791,2]
[352815196,1739343041784,-61601.96187244,0.000128,2]
[352815378,1739343043408,-5682.6426,0.000128,2]
[352815656,1739343046116,-774.96,0.00011863,2]
[352815658,1739343046125,-2937.1470389,0.000128,2]
[352815755,1739344232091,-878.86,9.978e-05,2]
[352815756,1739344232101,-500.0,9.999e-05,2]
[352815757,1739344232111,-500.0,9.999e-05,2]
[352815758,1739344232122,-315.93257356,9.999e-05,2]
[352815759,1739344232133,-151.46,0.00010137,2]
[352815760,1739344232143,-150.0,0.00010999,2]
[352815761,1739344232153,-196.51,0.00011533,2]
[352815762,1739344232163,-161.43,0.00011782,2]
[352815763,1739344232173,-161.43,0.00011802,2]
[352815764,1739344232183,-161.43,0.00011821,2]
[352815765,1739344232192,-161.43,0.00011841,2]
[352815766,1739344232202,-879.22,0.00011941,2]
[352815767,1739344232212,-500.0,0.00012075,2]
[352815768,1739344232222,-300.0,0.00012099,2]
[352815769,1739344232232,-105.08393157,0.000121,2]
[352815770,1739344232244,-329.11605762,0.000121,2]
[352815771,1739344232274,-5.69001081,0.000121,2]
[352815772,1739344232284,-999.99,0.000121,2]
[352815773,1739344232294,-4674.99,0.000121,2]
[352815774,1739344232304,-150.99,0.000121,2]
[352815775,1739344232315,-1000.0,0.00012118,2]
[352815776,1739344232326,-200.0,0.0001217,2]
[352815777,1739344232336,-878.86,0.00012242,2]
[352815778,1739344232345,-150.0,0.00012273,2]
[352815779,1739344232354,-150.0,0.00012274,2]
[352815780,1739344232365,-83.19998919,0.00012274,2]
[352815781,1739344232388,-66.80001081,0.00012274,2]
[352815782,1739344232397,-985.93,0.00012274,2]
[352815783,1739344232407,-151.2,0.00012274,2]